[Event "*** Titled Tuesday 3|2 Blitz (Early)"]
[Site "Chess.com"]
[Date "2016.11.01"]
[Round "6"]
[White "Wolverine_master"]
[Black "MateusViageiro"]
[Result "1-0"]
[WhiteElo "2074"]
[BlackElo "2269"]
[TimeControl "180+2"]
[EndTime "12:19:52 PDT"]
[Termination "Wolverine_master won by resignation"]

1. e4 {[%clk 0:03:01.6]} 1... c5 {[%clk 0:03:00.4]} 2. Nf3 {[%clk 0:03:01]} 2...
d6 {[%clk 0:02:58.6]} 3. d4 {[%clk 0:03:01.8]} 3... cxd4 {[%clk 0:02:56.1]} 4.
Nxd4 {[%clk 0:03:03.7]} 4... Nf6 {[%clk 0:02:56.8]} 5. Nc3 {[%clk 0:03:05.1]}
5... a6 {[%clk 0:02:57.9]} 6. Bg5 {[%clk 0:03:05.7]} 6... e6 {[%clk 0:02:58.7]}
7. f4 {[%clk 0:03:06.6]} 7... Be7 {[%clk 0:02:59.5]} 8. Qf3 {[%clk 0:03:07.3]}
8... Nbd7 {[%clk 0:02:59.6]} 9. O-O-O {[%clk 0:03:07.9]} 9... Qc7 {[%clk
0:03:00.9]} 10. g4 {[%clk 0:03:07.4]} 10... b5 {[%clk 0:03:01.3]} 11. Bxf6
{[%clk 0:03:06.9]} 11... Nxf6 {[%clk 0:03:02.4]} 12. g5 {[%clk 0:03:06.9]} 12...
Nd7 {[%clk 0:03:03.4]} 13. h4 {[%clk 0:02:08.5]} 13... b4 {[%clk 0:02:51.5]} 14.
Nce2 {[%clk 0:02:08]} 14... Nc5 {[%clk 0:02:51.2]} 15. f5 {[%clk 0:01:52.2]}
15... Bb7 {[%clk 0:02:53.1]} 16. Ng3 {[%clk 0:01:51.1]} 16... Qa5 {[%clk
0:02:40.1]} 17. Kb1 {[%clk 0:01:43.6]} 17... Rb8 {[%clk 0:02:31]} 18. fxe6
{[%clk 0:01:32.1]} 18... fxe6 {[%clk 0:02:29.6]} 19. Bc4 {[%clk 0:01:32.4]}
19... Rf8 {[%clk 0:01:56.2]} 20. Qh5+ {[%clk 0:01:11.9]} 20... Kd7 {[%clk
0:01:53.8]} 21. Qg4 {[%clk 0:01:04.3]} 21... Kc7 {[%clk 0:01:40.2]} 22. Nxe6+
{[%clk 0:00:57.1]} 22... Nxe6 {[%clk 0:01:38]} 23. Qxe6 {[%clk 0:00:58]} 23...
Qe5 {[%clk 0:01:37.4]} 24. Qxe5 {[%clk 0:00:49]} 24... dxe5 {[%clk 0:01:37.8]}
25. Bd5 {[%clk 0:00:48.2]} 25... g6 {[%clk 0:01:34]} 26. Bxb7 {[%clk 0:00:41.2]}
26... Rxb7 {[%clk 0:01:32]} 27. Rhf1 {[%clk 0:00:37.2]} 27... Rf4 {[%clk
0:01:31.5]} 28. Rxf4 {[%clk 0:00:30.9]} 28... exf4 {[%clk 0:01:32.1]} 29. Ne2
{[%clk 0:00:28.6]} 29... f3 {[%clk 0:01:31.6]} 30. Nd4 {[%clk 0:00:24.4]} 30...
f2 {[%clk 0:01:31.7]} 31. Rf1 {[%clk 0:00:24.4]} 31... Bc5 {[%clk 0:01:28]} 32.
Ne6+ {[%clk 0:00:25.2]} 32... Kd6 {[%clk 0:01:28.7]} 33. Nxc5 {[%clk 0:00:25.8]}
33... Kxc5 {[%clk 0:01:29.9]} 34. Rxf2 {[%clk 0:00:22.2]} 34... Re7 {[%clk
0:01:30.3]} 35. Re2 {[%clk 0:00:16.7]} 35... Kd4 {[%clk 0:01:31.3]} 36. Kc1
{[%clk 0:00:14.7]} 36... Ke5 {[%clk 0:01:32.1]} 37. Kd2 {[%clk 0:00:14.6]} 37...
Kf4 {[%clk 0:01:33.1]} 38. Kd3 {[%clk 0:00:12.1]} 38... Kg3 {[%clk 0:01:31.9]}
39. Kc4 {[%clk 0:00:10.4]} 39... Kxh4 {[%clk 0:01:31]} 40. Kxb4 {[%clk
0:00:11.7]} 40... Kxg5 {[%clk 0:01:32]} 41. Kc5 {[%clk 0:00:13.2]} 41... Kf4
{[%clk 0:01:32.4]} 42. Kd5 {[%clk 0:00:13.2]} 42... Kf3 {[%clk 0:01:32.4]} 43.
Re1 {[%clk 0:00:13.1]} 43... g5 {[%clk 0:01:32.5]} 44. e5 {[%clk 0:00:12.3]}
44... g4 {[%clk 0:01:32.9]} 45. Kd6 {[%clk 0:00:09.6]} 45... Re8 {[%clk
0:01:30.8]} 46. e6 {[%clk 0:00:10.5]} 46... g3 {[%clk 0:01:30.1]} 47. c4 {[%clk
0:00:09.5]} 47... Kf2 {[%clk 0:01:28.8]} 48. Rd1 {[%clk 0:00:09]} 48... g2
{[%clk 0:01:28.2]} 49. e7 {[%clk 0:00:08.1]} 49... g1=Q {[%clk 0:01:27]} 50.
Rxg1 {[%clk 0:00:08.7]} 50... Kxg1 {[%clk 0:01:27.9]} 51. Kd7 {[%clk 0:00:09.5]}
51... Rh8 {[%clk 0:01:27.4]} 52. e8=Q {[%clk 0:00:10.2]} 52... Rxe8 {[%clk
0:01:27.6]} 53. Kxe8 {[%clk 0:00:12.1]} 53... h5 {[%clk 0:01:28.3]} 54. c5
{[%clk 0:00:10.8]} 54... h4 {[%clk 0:01:29.4]} 55. c6 {[%clk 0:00:12.7]} 55...
h3 {[%clk 0:01:30.7]} 56. c7 {[%clk 0:00:14.6]} 56... h2 {[%clk 0:01:31.8]} 57.
c8=Q {[%clk 0:00:16.1]} 57... h1=Q {[%clk 0:01:33.1]} 58. Qc1+ {[%clk
0:00:17.3]} 58... Kh2 {[%clk 0:01:32.5]} 59. Qxh1+ {[%clk 0:00:17.8]} 59... Kxh1
{[%clk 0:01:30.7]} 60. Kd7 {[%clk 0:00:18.8]} 60... Kg2 {[%clk 0:01:31.5]} 61.
Kc6 {[%clk 0:00:19.8]} 61... Kf3 {[%clk 0:01:32.4]} 62. Kb6 {[%clk 0:00:21]}
62... Ke3 {[%clk 0:01:33.5]} 63. Kxa6 {[%clk 0:00:20.9]} 63... Kd3 {[%clk
0:01:31.2]} 64. b4 {[%clk 0:00:20.9]} 64... Kc4 {[%clk 0:01:31.8]} 65. Ka5
{[%clk 0:00:19.4]} 1-0

[Event "*** Titled Tuesday 3|2 Blitz (Early)"]
[Site "Chess.com"]
[Date "2016.11.01"]
[Round "6"]
[White "petrpalachev"]
[Black "brightthunder"]
[Result "1/2-1/2"]
[WhiteElo "2426"]
[BlackElo "2557"]
[TimeControl "180+2"]
[EndTime "12:20:17 PDT"]
[Termination "Game drawn - insufficient material"]

1. d4 {[%clk 0:03:02]} 1... Nf6 {[%clk 0:03:00.6]} 2. c4 {[%clk 0:03:03.2]} 2...
e6 {[%clk 0:03:01.3]} 3. Nf3 {[%clk 0:03:04.1]} 3... b6 {[%clk 0:03:02]} 4. g3
{[%clk 0:03:05.2]} 4... Bb7 {[%clk 0:03:03.1]} 5. Bg2 {[%clk 0:03:06.9]} 5...
Be7 {[%clk 0:03:05]} 6. O-O {[%clk 0:03:08.4]} 6... O-O {[%clk 0:03:06.6]} 7.
Re1 {[%clk 0:03:10.1]} 7... Na6 {[%clk 0:03:04.6]} 8. a3 {[%clk 0:03:11.6]} 8...
c5 {[%clk 0:03:00.2]} 9. d5 {[%clk 0:03:11.3]} 9... exd5 {[%clk 0:02:58.7]} 10.
Nh4 {[%clk 0:03:09.2]} 10... Ne4 {[%clk 0:02:24.6]} 11. cxd5 {[%clk 0:03:08.5]}
11... Bxh4 {[%clk 0:02:24.4]} 12. Bxe4 {[%clk 0:03:09.3]} 12... Bf6 {[%clk
0:02:25.2]} 13. Qc2 {[%clk 0:03:11]} 13... g6 {[%clk 0:02:25.9]} 14. Nc3 {[%clk
0:03:09.8]} 14... d6 {[%clk 0:02:25.9]} 15. h4 {[%clk 0:03:08.7]} 15... Nc7
{[%clk 0:02:23.7]} 16. Bh6 {[%clk 0:03:07.6]} 16... Bg7 {[%clk 0:02:23.3]} 17.
Bg5 {[%clk 0:03:06.9]} 17... f6 {[%clk 0:02:21.6]} 18. Bf4 {[%clk 0:03:05.4]}
18... Qd7 {[%clk 0:02:07.4]} 19. Rad1 {[%clk 0:03:03]} 19... b5 {[%clk
0:02:04.9]} 20. h5 {[%clk 0:02:59.5]} 20... f5 {[%clk 0:02:05.2]} 21. Bf3 {[%clk
0:03:00.2]} 21... Rae8 {[%clk 0:02:03.3]} 22. hxg6 {[%clk 0:02:58.4]} 22... hxg6
{[%clk 0:02:05.2]} 23. Kg2 {[%clk 0:02:50.5]} 23... a5 {[%clk 0:02:00.4]} 24.
Rh1 {[%clk 0:02:49]} 24... b4 {[%clk 0:02:00.4]} 25. Nb1 {[%clk 0:02:47.9]}
25... Nb5 {[%clk 0:01:45.3]} 26. e3 {[%clk 0:02:42.6]} 26... Qe7 {[%clk
0:01:45.8]} 27. Bh6 {[%clk 0:02:18.7]} 27... Nc7 {[%clk 0:01:39.6]} 28. axb4
{[%clk 0:02:02]} 28... axb4 {[%clk 0:01:40.2]} 29. Nd2 {[%clk 0:01:37.7]} 29...
g5 {[%clk 0:01:40.8]} 30. Bxg7 {[%clk 0:01:23.6]} 30... Kxg7 {[%clk 0:01:20.7]}
31. Nc4 {[%clk 0:01:17.9]} 31... Rf6 {[%clk 0:00:58.1]} 32. g4 {[%clk
0:01:18.3]} 32... Ref8 {[%clk 0:00:42]} 33. Rh5 {[%clk 0:01:16.8]} 33... Rh6
{[%clk 0:00:27.4]} 34. Rxh6 {[%clk 0:01:14.6]} 34... Kxh6 {[%clk 0:00:29.3]} 35.
gxf5 {[%clk 0:01:13.9]} 35... g4 {[%clk 0:00:27.9]} 36. Bxg4 {[%clk 0:00:34]}
36... Nxd5 {[%clk 0:00:28.4]} 37. Rh1+ {[%clk 0:00:22.5]} 37... Kg7 {[%clk
0:00:29.1]} 38. Rh7+ {[%clk 0:00:16.6]} 38... Kxh7 {[%clk 0:00:28.9]} 39. f6+
{[%clk 0:00:18.1]} 39... Kg8 {[%clk 0:00:25.7]} 40. fxe7 {[%clk 0:00:18.5]}
40... Nxe3+ {[%clk 0:00:26.8]} 41. Kg3 {[%clk 0:00:17]} 41... Nxc2 {[%clk
0:00:26.8]} 42. exf8=Q+ {[%clk 0:00:18]} 42... Kxf8 {[%clk 0:00:28]} 43. Nxd6
{[%clk 0:00:19.8]} 43... Bd5 {[%clk 0:00:28.5]} 44. Bf3 {[%clk 0:00:17.4]} 44...
Be6 {[%clk 0:00:27.9]} 45. Be4 {[%clk 0:00:15.6]} 45... Nd4 {[%clk 0:00:26.6]}
46. Kf4 {[%clk 0:00:13.1]} 46... Ke7 {[%clk 0:00:26.5]} 47. Ke5 {[%clk
0:00:11.6]} 47... Ne2 {[%clk 0:00:24.3]} 48. Nf5+ {[%clk 0:00:09.7]} 48... Kd7
{[%clk 0:00:21.3]} 49. Ne3 {[%clk 0:00:10.3]} 49... c4 {[%clk 0:00:15]} 50. f4
{[%clk 0:00:04.9]} 50... c3 {[%clk 0:00:14]} 51. bxc3 {[%clk 0:00:06.8]} 51...
Nxc3 {[%clk 0:00:15.1]} 52. f5 {[%clk 0:00:07.3]} 52... Bg8 {[%clk 0:00:14.5]}
53. f6 {[%clk 0:00:06.8]} 53... b3 {[%clk 0:00:15.4]} 54. Bf5+ {[%clk
0:00:07.1]} 54... Kc6 {[%clk 0:00:14.3]} 55. Kd4 {[%clk 0:00:08.2]} 55... Nb5+
{[%clk 0:00:12.5]} 56. Kd3 {[%clk 0:00:08.6]} 56... Nd6 {[%clk 0:00:10.5]} 57.
Kc3 {[%clk 0:00:06.5]} 57... Nxf5 {[%clk 0:00:09.9]} 58. Nxf5 {[%clk 0:00:08.4]}
58... Kd7 {[%clk 0:00:10.9]} 59. Nh6 {[%clk 0:00:09.2]} 59... Bd5 {[%clk
0:00:11.6]} 60. f7 {[%clk 0:00:10.6]} 60... Bxf7 {[%clk 0:00:12.5]} 61. Nxf7
{[%clk 0:00:12.4]} 61... b2 {[%clk 0:00:13.6]} 62. Kxb2 {[%clk 0:00:13.7]}
1/2-1/2

[Event "*** Titled Tuesday 3|2 Blitz (Early)"]
[Site "Chess.com"]
[Date "2016.11.01"]
[Round "6"]
[White "Frolyanov_D"]
[Black "VSERGUEI"]
[Result "0-1"]
[WhiteElo "2449"]
[BlackElo "2589"]
[TimeControl "180+2"]
[EndTime "12:20:33 PDT"]
[Termination "VSERGUEI won by resignation"]

1. e4 {[%clk 0:03:01.9]} 1... e6 {[%clk 0:03:00.7]} 2. d4 {[%clk 0:02:59.8]}
2... d5 {[%clk 0:03:02]} 3. Nc3 {[%clk 0:03:00.2]} 3... Nf6 {[%clk 0:03:02.2]}
4. e5 {[%clk 0:02:59.7]} 4... Nfd7 {[%clk 0:03:03.2]} 5. f4 {[%clk 0:03:00.3]}
5... c5 {[%clk 0:03:04.3]} 6. Nf3 {[%clk 0:03:00.7]} 6... Nc6 {[%clk 0:03:05.4]}
7. Be3 {[%clk 0:03:01.1]} 7... Qb6 {[%clk 0:03:06.4]} 8. Na4 {[%clk 0:02:58.7]}
8... Qa5+ {[%clk 0:03:07.3]} 9. c3 {[%clk 0:02:59.2]} 9... b6 {[%clk 0:03:08.3]}
10. Bd2 {[%clk 0:02:50.3]} 10... c4 {[%clk 0:03:08.4]} 11. b4 {[%clk 0:02:50.7]}
11... Qa6 {[%clk 0:03:09.2]} 12. a3 {[%clk 0:02:50.6]} 12... Be7 {[%clk
0:03:07.3]} 13. g3 {[%clk 0:02:49.2]} 13... f5 {[%clk 0:03:05.2]} 14. Bg2 {[%clk
0:02:49.2]} 14... O-O {[%clk 0:03:03.8]} 15. O-O {[%clk 0:02:46.3]} 15... Qb7
{[%clk 0:03:04]} 16. Be3 {[%clk 0:02:37.6]} 16... a5 {[%clk 0:03:02.6]} 17. Nb2
{[%clk 0:02:29.6]} 17... b5 {[%clk 0:03:02.2]} 18. Qd2 {[%clk 0:02:19.9]} 18...
Nb6 {[%clk 0:03:02.3]} 19. h3 {[%clk 0:02:16.3]} 19... Bd7 {[%clk 0:03:02.4]}
20. Kh2 {[%clk 0:02:07.8]} 20... axb4 {[%clk 0:02:59.7]} 21. axb4 {[%clk
0:02:08]} 21... Rxa1 {[%clk 0:03:00.6]} 22. Rxa1 {[%clk 0:02:09.4]} 22... Ra8
{[%clk 0:03:01.5]} 23. Qc1 {[%clk 0:01:36.3]} 23... Ra6 {[%clk 0:03:01.2]} 24.
Ne1 {[%clk 0:01:34.9]} 24... Qa8 {[%clk 0:02:58]} 25. Nc2 {[%clk 0:01:35.4]}
25... Be8 {[%clk 0:02:43.4]} 26. Bd2 {[%clk 0:01:31]} 26... Bh5 {[%clk
0:02:41.1]} 27. Rxa6 {[%clk 0:01:10.6]} 27... Qxa6 {[%clk 0:02:40.8]} 28. Qa1
{[%clk 0:01:02.9]} 28... Qxa1 {[%clk 0:02:37.5]} 29. Nxa1 {[%clk 0:01:04.8]}
29... Be2 {[%clk 0:02:38.3]} 30. Nc2 {[%clk 0:01:01]} 30... Bd3 {[%clk
0:02:33.4]} 31. Na3 {[%clk 0:01:00.7]} 31... Na7 {[%clk 0:02:27.5]} 32. Kg1
{[%clk 0:01:00.8]} 32... Be4 {[%clk 0:02:25.9]} 33. Bf1 {[%clk 0:00:59.9]} 33...
Kf7 {[%clk 0:02:24.1]} 34. Kf2 {[%clk 0:00:59.8]} 34... h6 {[%clk 0:02:23.6]}
35. Be2 {[%clk 0:01:00.4]} 35... g5 {[%clk 0:02:13.2]} 36. Bh5+ {[%clk
0:00:48.6]} 36... Kf8 {[%clk 0:02:12.7]} 37. Kf1 {[%clk 0:00:21.4]} 37... Na8
{[%clk 0:02:12.1]} 38. Kf2 {[%clk 0:00:19]} 38... Nc7 {[%clk 0:02:13.1]} 39. Nd1
{[%clk 0:00:17.2]} 39... Nc8 {[%clk 0:02:12.2]} 40. Nb2 {[%clk 0:00:15.1]} 40...
Nb6 {[%clk 0:02:13.1]} 41. Be2 {[%clk 0:00:15.6]} 41... Kg7 {[%clk 0:02:12.3]}
42. Kg1 {[%clk 0:00:12]} 42... Kg6 {[%clk 0:02:12.3]} 43. Kf2 {[%clk 0:00:12.4]}
43... gxf4 {[%clk 0:02:05]} 44. Bxf4 {[%clk 0:00:13.1]} 44... Bg5 {[%clk
0:02:02.8]} 45. Ke3 {[%clk 0:00:13.6]} 45... Be7 {[%clk 0:01:53.1]} 46. h4
{[%clk 0:00:14.2]} 46... Nd7 {[%clk 0:01:42.1]} 47. Nd1 {[%clk 0:00:12.2]} 47...
Kg7 {[%clk 0:01:39.5]} 48. Nf2 {[%clk 0:00:12.8]} 48... Nb6 {[%clk 0:01:39.8]}
49. Kd2 {[%clk 0:00:12.8]} 49... Na4 {[%clk 0:01:38.1]} 50. Be3 {[%clk
0:00:13.3]} 50... Bg2 {[%clk 0:01:32.6]} 51. Bd1 {[%clk 0:00:09.4]} 51... Nb6
{[%clk 0:01:29.5]} 52. Bc2 {[%clk 0:00:09.8]} 52... Nd7 {[%clk 0:01:29]} 53. Bd1
{[%clk 0:00:10.2]} 53... Nf8 {[%clk 0:01:29.5]} 54. Be2 {[%clk 0:00:09.1]} 54...
Ng6 {[%clk 0:01:30.2]} 55. h5 {[%clk 0:00:09.2]} 55... Nf8 {[%clk 0:01:29.2]}
56. g4 {[%clk 0:00:10.4]} 56... Be4 {[%clk 0:01:20.8]} 57. gxf5 {[%clk
0:00:07.2]} 57... exf5 {[%clk 0:01:16.8]} 58. Nh3 {[%clk 0:00:06.7]} 58... Nfe6
{[%clk 0:01:13.3]} 59. Nf4 {[%clk 0:00:07.7]} 59... Nxf4 {[%clk 0:01:10]} 60.
Bxf4 {[%clk 0:00:09.6]} 60... Bg5 {[%clk 0:01:11.1]} 61. Ke3 {[%clk 0:00:09.3]}
61... Bg2 {[%clk 0:00:58.6]} 62. Bf3 {[%clk 0:00:08.2]} 62... Bh3 {[%clk
0:00:53.2]} 63. Bh1 {[%clk 0:00:08.5]} 63... Bg4 {[%clk 0:00:53.5]} 64. Nc2
{[%clk 0:00:07.9]} 64... Bxh5 {[%clk 0:00:53.5]} 65. Bxg5 {[%clk 0:00:02.8]}
65... hxg5 {[%clk 0:00:53.7]} 66. Kf2 {[%clk 0:00:03.2]} 66... f4 {[%clk
0:00:54]} 67. e6 {[%clk 0:00:02.6]} 67... Kf6 {[%clk 0:00:53.7]} 0-1

[Event "*** Titled Tuesday 3|2 Blitz (Early)"]
[Site "Chess.com"]
[Date "2016.11.01"]
[Round "6"]
[White "Chopper1905"]
[Black "Matibar"]
[Result "0-1"]
[WhiteElo "2556"]
[BlackElo "2588"]
[TimeControl "180+2"]
[EndTime "12:20:41 PDT"]
[Termination "Matibar won by checkmate"]

1. d4 {[%clk 0:03:00.4]} 1... Nf6 {[%clk 0:02:54.4]} 2. c4 {[%clk 0:03:01.4]}
2... b6 {[%clk 0:02:55.1]} 3. Bf4 {[%clk 0:02:57.9]} 3... Bb7 {[%clk 0:02:54.1]}
4. e3 {[%clk 0:02:59]} 4... d5 {[%clk 0:02:45.8]} 5. Nc3 {[%clk 0:02:58.1]} 5...
e6 {[%clk 0:02:45.8]} 6. Nf3 {[%clk 0:02:55.1]} 6... Bd6 {[%clk 0:02:46.9]} 7.
Bg3 {[%clk 0:02:54.5]} 7... O-O {[%clk 0:02:47.1]} 8. Bd3 {[%clk 0:02:52.4]}
8... dxc4 {[%clk 0:02:42.3]} 9. Bxc4 {[%clk 0:02:51.5]} 9... Nbd7 {[%clk
0:02:43.9]} 10. O-O {[%clk 0:02:50.9]} 10... Qe7 {[%clk 0:02:44.7]} 11. Qe2
{[%clk 0:02:50.3]} 11... Bxg3 {[%clk 0:02:44.8]} 12. hxg3 {[%clk 0:02:50.6]}
12... e5 {[%clk 0:02:46.4]} 13. Ba6 {[%clk 0:02:37.9]} 13... Bxa6 {[%clk
0:02:16.3]} 14. Qxa6 {[%clk 0:02:39.8]} 14... e4 {[%clk 0:02:18.2]} 15. Nd2
{[%clk 0:02:38]} 15... c5 {[%clk 0:02:19.7]} 16. Rfe1 {[%clk 0:02:30.2]} 16...
Rfe8 {[%clk 0:02:18.4]} 17. Qb7 {[%clk 0:02:23.6]} 17... Qe6 {[%clk 0:02:16]}
18. Ndxe4 {[%clk 0:02:00.2]} 18... Nxe4 {[%clk 0:02:05.1]} 19. Nxe4 {[%clk
0:01:51.3]} 19... Nf8 {[%clk 0:01:28.8]} 20. Ng5 {[%clk 0:01:43.7]} 20... Qf6
{[%clk 0:01:27.1]} 21. Nf3 {[%clk 0:01:44.3]} 21... Reb8 {[%clk 0:01:24.2]} 22.
Qe4 {[%clk 0:01:41.8]} 22... Re8 {[%clk 0:01:24.3]} 23. Qf4 {[%clk 0:01:42.5]}
23... Qe7 {[%clk 0:01:23.6]} 24. dxc5 {[%clk 0:01:42.4]} 24... Qxc5 {[%clk
0:01:24.4]} 25. Rac1 {[%clk 0:01:42]} 25... Qd5 {[%clk 0:01:22.3]} 26. b3 {[%clk
0:01:39.2]} 26... Ne6 {[%clk 0:01:20.9]} 27. Qc4 {[%clk 0:01:36.1]} 27... Qh5
{[%clk 0:01:19.7]} 28. Red1 {[%clk 0:01:34.6]} 28... Rad8 {[%clk 0:01:16.9]} 29.
Qa6 {[%clk 0:01:28.4]} 29... Rxd1+ {[%clk 0:01:10.1]} 30. Rxd1 {[%clk 0:01:29]}
30... Ng5 {[%clk 0:01:12]} 31. Qb7 {[%clk 0:01:24.6]} 31... h6 {[%clk
0:00:58.3]} 32. Rd4 {[%clk 0:01:14.2]} 32... Ne6 {[%clk 0:00:52.1]} 33. Rd2
{[%clk 0:01:05.1]} 33... Qa5 {[%clk 0:00:50.5]} 34. Qc6 {[%clk 0:00:58.5]} 34...
Rf8 {[%clk 0:00:48.7]} 35. Qc2 {[%clk 0:00:47.2]} 35... Qa6 {[%clk 0:00:32.8]}
36. g4 {[%clk 0:00:45.7]} 36... Rc8 {[%clk 0:00:33]} 37. Qd1 {[%clk 0:00:45.9]}
37... Qa3 {[%clk 0:00:30.4]} 38. Rc2 {[%clk 0:00:40.3]} 38... Rd8 {[%clk
0:00:31.8]} 39. Nd4 {[%clk 0:00:37.7]} 39... Nc5 {[%clk 0:00:28.6]} 40. Qf3
{[%clk 0:00:34.3]} 40... Rf8 {[%clk 0:00:16.5]} 41. Qd5 {[%clk 0:00:29.1]} 41...
Qa6 {[%clk 0:00:17.3]} 42. Nf5 {[%clk 0:00:24.2]} 42... Ne6 {[%clk 0:00:14.6]}
43. Ne7+ {[%clk 0:00:24.9]} 43... Kh7 {[%clk 0:00:14.4]} 44. Qe4+ {[%clk
0:00:25.6]} 44... Kh8 {[%clk 0:00:15.3]} 45. Ng6+ {[%clk 0:00:21]} 45... fxg6
{[%clk 0:00:17.2]} 46. Qxe6 {[%clk 0:00:22.2]} 46... Qd3 {[%clk 0:00:18.4]} 47.
Qc4 {[%clk 0:00:21.4]} 47... Qd1+ {[%clk 0:00:18]} 48. Kh2 {[%clk 0:00:22.7]}
48... Qe1 {[%clk 0:00:19.6]} 49. Kg3 {[%clk 0:00:22.8]} 49... Qa1 {[%clk
0:00:19.4]} 50. Qe4 {[%clk 0:00:23.6]} 50... Qf6 {[%clk 0:00:17.7]} 51. f4
{[%clk 0:00:23.9]} 51... g5 {[%clk 0:00:19.2]} 52. Rc6 {[%clk 0:00:21.1]} 52...
gxf4+ {[%clk 0:00:18.7]} 53. exf4 {[%clk 0:00:22.4]} 53... Qb2 {[%clk
0:00:20.4]} 54. Kh3 {[%clk 0:00:17.9]} 54... Qxa2 {[%clk 0:00:21.4]} 55. Rc3
{[%clk 0:00:16.3]} 55... Qb2 {[%clk 0:00:21.7]} 56. Rg3 {[%clk 0:00:16.9]} 56...
Qc1 {[%clk 0:00:20.6]} 57. Kh2 {[%clk 0:00:16.7]} 57... Qxf4 {[%clk 0:00:21.3]}
58. Qe7 {[%clk 0:00:17.6]} 58... Rc8 {[%clk 0:00:20.9]} 59. g5 {[%clk
0:00:17.9]} 59... h5 {[%clk 0:00:20]} 60. Kh3 {[%clk 0:00:17.1]} 60... Qf5+
{[%clk 0:00:16]} 61. Kh4 {[%clk 0:00:17.4]} 61... Qf4+ {[%clk 0:00:14.4]} 62.
Kh3 {[%clk 0:00:18.7]} 62... Qf5+ {[%clk 0:00:15.6]} 63. Kh4 {[%clk 0:00:20]}
63... g6 {[%clk 0:00:12.4]} 64. Qxa7 {[%clk 0:00:19.2]} 64... Re8 {[%clk
0:00:11.9]} 65. Qa1+ {[%clk 0:00:20.2]} 65... Kh7 {[%clk 0:00:12.5]} 66. Qa7+
{[%clk 0:00:18.3]} 66... Kg8 {[%clk 0:00:13.7]} 67. Rf3 {[%clk 0:00:14.1]} 67...
Qg4# {[%clk 0:00:14.4]} 0-1

[Event "*** Titled Tuesday 3|2 Blitz (Early)"]
[Site "Chess.com"]
[Date "2016.11.01"]
[Round "6"]
[White "metalbattler"]
[Black "Kawhi_Leonard2"]
[Result "1/2-1/2"]
[WhiteElo "2015"]
[BlackElo "2067"]
[TimeControl "180+2"]
[EndTime "12:20:59 PDT"]
[Termination "Game drawn by repetition"]

1. e4 {[%clk 0:02:57.9]} 1... c5 {[%clk 0:01:38.2]} 2. Nc3 {[%clk 0:02:56.4]}
2... Nc6 {[%clk 0:01:38.6]} 3. Bb5 {[%clk 0:02:57.8]} 3... Nd4 {[%clk
0:01:35.5]} 4. Nf3 {[%clk 0:02:58.5]} 4... Nxb5 {[%clk 0:01:33.9]} 5. Nxb5
{[%clk 0:03:00.4]} 5... d5 {[%clk 0:01:32.7]} 6. exd5 {[%clk 0:03:00.7]} 6... a6
{[%clk 0:01:34]} 7. Nc3 {[%clk 0:03:01.7]} 7... Nf6 {[%clk 0:01:35.4]} 8. d4
{[%clk 0:03:03.1]} 8... Nxd5 {[%clk 0:01:35]} 9. dxc5 {[%clk 0:03:04.2]} 9...
Nxc3 {[%clk 0:01:36]} 10. Qxd8+ {[%clk 0:03:05.9]} 10... Kxd8 {[%clk 0:01:37.1]}
11. bxc3 {[%clk 0:03:07.8]} 11... f6 {[%clk 0:01:36.7]} 12. Be3 {[%clk
0:03:05.7]} 12... e5 {[%clk 0:01:37.4]} 13. Rb1 {[%clk 0:03:07.1]} 13... Kc7
{[%clk 0:01:38.1]} 14. Ke2 {[%clk 0:02:59.4]} 14... Bf5 {[%clk 0:01:38.4]} 15.
Rb2 {[%clk 0:02:59.5]} 15... Kc6 {[%clk 0:01:27.8]} 16. Rhb1 {[%clk 0:01:46.7]}
16... Rb8 {[%clk 0:01:28.6]} 17. Rb6+ {[%clk 0:01:44.6]} 17... Kc7 {[%clk
0:01:29.3]} 18. R1b2 {[%clk 0:01:45.9]} 18... Be7 {[%clk 0:01:30.3]} 19. Nd2
{[%clk 0:01:45.1]} 19... Rhc8 {[%clk 0:01:24.1]} 20. f3 {[%clk 0:01:41.2]} 20...
Be6 {[%clk 0:01:24.9]} 21. Ne4 {[%clk 0:01:36.8]} 21... Bd5 {[%clk 0:01:23.7]}
22. Nd6 {[%clk 0:01:31.9]} 22... Rd8 {[%clk 0:01:20.2]} 23. c4 {[%clk
0:01:22.4]} 23... Bc6 {[%clk 0:01:17.5]} 24. Ne4 {[%clk 0:01:02.8]} 24... Rd7
{[%clk 0:01:17.4]} 25. Nc3 {[%clk 0:00:45.3]} 25... Rbd8 {[%clk 0:01:16.5]} 26.
Nd5+ {[%clk 0:00:44.3]} 26... Kc8 {[%clk 0:01:10.2]} 27. R6b4 {[%clk 0:00:39.7]}
27... Kb8 {[%clk 0:00:48.2]} 28. R4b3 {[%clk 0:00:25.8]} 28... Rc8 {[%clk
0:00:43.8]} 29. Nb6 {[%clk 0:00:24.4]} 29... Rcc7 {[%clk 0:00:29.9]} 30. Nxd7+
{[%clk 0:00:25.3]} 30... Rxd7 {[%clk 0:00:31.2]} 31. Rd3 {[%clk 0:00:25.1]}
31... Rc7 {[%clk 0:00:32.3]} 32. Rb1 {[%clk 0:00:16.6]} 32... Kc8 {[%clk
0:00:33.2]} 33. Rbd1 {[%clk 0:00:17.6]} 33... Be8 {[%clk 0:00:33.4]} 34. Rd5
{[%clk 0:00:14.8]} 34... Bf7 {[%clk 0:00:32.1]} 35. g3 {[%clk 0:00:02.3]} 35...
Bxd5 {[%clk 0:00:24.2]} 36. Rxd5 {[%clk 0:00:04.2]} 36... Rd7 {[%clk 0:00:20.8]}
37. g4 {[%clk 0:00:04.7]} 37... Kc7 {[%clk 0:00:21.2]} 38. Kd3 {[%clk
0:00:05.7]} 38... Kc6 {[%clk 0:00:20.1]} 39. Ke4 {[%clk 0:00:07.2]} 39... g6
{[%clk 0:00:15.2]} 40. Rxd7 {[%clk 0:00:06.6]} 40... Kxd7 {[%clk 0:00:15.8]} 41.
Kd5 {[%clk 0:00:08.5]} 41... Bd8 {[%clk 0:00:16.3]} 42. a4 {[%clk 0:00:09.5]}
42... Bc7 {[%clk 0:00:16.8]} 43. h3 {[%clk 0:00:10.5]} 43... Bd8 {[%clk
0:00:15.5]} 44. Bh6 {[%clk 0:00:11.8]} 44... Bc7 {[%clk 0:00:16.7]} 45. Bg7
{[%clk 0:00:12.8]} 45... Bd8 {[%clk 0:00:17.6]} 46. Bh8 {[%clk 0:00:12.7]} 46...
Be7 {[%clk 0:00:19]} 47. Bg7 {[%clk 0:00:13.5]} 47... Bd8 {[%clk 0:00:17.3]} 48.
Bh8 {[%clk 0:00:14.6]} 48... Be7 {[%clk 0:00:19]} 49. Bg7 {[%clk 0:00:15.5]}
49... Bd8 {[%clk 0:00:20.4]} 50. Bh6 {[%clk 0:00:16.7]} 50... Be7 {[%clk
0:00:22.1]} 51. h4 {[%clk 0:00:18.2]} 51... Bd8 {[%clk 0:00:19.7]} 52. h5 {[%clk
0:00:19.3]} 52... Be7 {[%clk 0:00:19.9]} 53. Bg7 {[%clk 0:00:16.5]} 53... Bd8
{[%clk 0:00:20.3]} 54. Bf8 {[%clk 0:00:17.1]} 54... Ba5 {[%clk 0:00:16.3]} 55.
Bd6 {[%clk 0:00:14.9]} 55... Bd8 {[%clk 0:00:16.5]} 56. Bf8 {[%clk 0:00:12.2]}
56... Ba5 {[%clk 0:00:17]} 57. Bg7 {[%clk 0:00:12.3]} 57... Bd8 {[%clk
0:00:17.9]} 58. Bf8 {[%clk 0:00:13.9]} 58... Ba5 {[%clk 0:00:18.6]} 59. Bg7
{[%clk 0:00:14.8]} 59... Bd8 {[%clk 0:00:20.1]} 60. Bf8 {[%clk 0:00:16.4]} 60...
Ba5 {[%clk 0:00:21.1]} 61. hxg6 {[%clk 0:00:18]} 61... hxg6 {[%clk 0:00:20.2]}
62. Bg7 {[%clk 0:00:19.1]} 62... Bd8 {[%clk 0:00:21.1]} 63. Bf8 {[%clk
0:00:14.8]} 63... g5 {[%clk 0:00:17.9]} 64. Bd6 {[%clk 0:00:13.8]} 64... Ba5
{[%clk 0:00:18.6]} 65. Bf8 {[%clk 0:00:05.8]} 65... Bd8 {[%clk 0:00:15.7]} 66.
Bd6 {[%clk 0:00:07.3]} 66... Ba5 {[%clk 0:00:16.3]} 67. Bf8 {[%clk 0:00:08.8]}
67... Bd8 {[%clk 0:00:17]} 68. Bd6 {[%clk 0:00:09.7]} 68... Ba5 {[%clk
0:00:18.5]} 69. Bf8 {[%clk 0:00:10.6]} 69... Bd8 {[%clk 0:00:20]} 70. Bd6 {[%clk
0:00:08.7]} 70... Ba5 {[%clk 0:00:20.9]} 71. Bf8 {[%clk 0:00:07]} 71... Bd8
{[%clk 0:00:21.9]} 1/2-1/2